bitfinex/quotes_SOLUSD_20220228
["timestamp","ask_amount","ask_price","bid_price","bid_amount"]
[1646077712639,2.13717737,96.116,95.985,45.40692666]
[1646077712839,2.13717737,96.116,95.986,6.0]
[1646077713038,62.39,96.114,95.986,6.0]
[1646077713241,62.39,96.099,95.986,6.0]
[1646077713442,62.39,96.097,95.986,6.0]
[1646077713638,2.13383872,96.096,95.991,104.0]
[1646077714039,2.13383872,96.096,95.993,104.0]
[1646077714442,2.13383872,96.096,95.995,104.0]
[1646077714639,2.13383872,96.096,96.001,104.0]
[1646077715041,23.5701,96.098,96.003,104.0]
[1646077715243,2.19090575,96.097,96.003,104.0]
[1646077715541,2.19090575,96.097,96.004,15.37474919]
[1646077717044,2.19090575,96.097,96.001,23.963]
[1646077717045,1.71317595,96.096,96.001,23.963]
[1646077717743,1.71317595,96.096,95.984,15.4672]
[1646077717943,64.08848991,96.094,95.984,15.4672]
[1646077718144,62.39,96.079,95.984,15.4672]
[1646077718343,62.39,96.077,95.984,15.4672]
[1646077718643,2.09766827,96.076,95.984,15.4672]
[1646077718843,2.09766827,96.076,95.985,8.74678921]
[1646077719647,2.09766827,96.076,95.986,2.74678921]
[1646077720648,2.09766827,96.076,95.985,6.0]
[1646077735082,2.09766827,96.076,95.976,23.0137]
[1646077735278,2.09766827,96.076,95.977,6.0]
[1646077736281,2.09766827,96.076,95.976,23.0137]
[1646077738383,1.97866069,96.073,95.976,23.0137]
[1646077738586,62.39,96.059,95.976,23.0137]
[1646077738884,2.16006004,96.056,95.976,23.0137]
[1646077739284,2.16006004,96.056,95.985,3.0]
[1646077747001,62.39,96.055,95.985,3.0]
[1646077747203,2.15679321,96.054,95.985,3.0]
[1646077747402,62.39,96.039,95.985,3.0]
[1646077747602,62.39,96.035,95.985,3.0]
[1646077747800,2.07400141,96.034,95.985,3.0]
[1646077750219,2.20178763,96.069,95.985,3.0]
[1646077750418,23.5239,96.068,95.985,3.0]
[1646077750621,2.20748233,96.067,95.985,3.0]
[1646077751218,48.18124861,96.066,95.985,3.0]
[1646077751419,1.75515105,96.065,95.985,18.7582]
[1646077751620,1.75515105,96.065,95.986,24.3893]
[1646077752218,1.75515105,96.065,95.987,6.0]
[1646077753520,22.81390468,96.101,95.988,104.0]
[1646077753720,2.19731867,96.1,95.991,104.0]
[1646077753920,1.65567646,96.108,95.991,104.0]
[1646077754120,1.65567646,96.108,95.993,104.0]
[1646077754520,1.67643331,96.106,95.994,2.74678921]
[1646077755121,1.67643331,96.106,95.996,104.0]
[1646077755322,1.67643331,96.106,96.011,104.0]
[1646077755522,1.67643331,96.106,96.013,104.0]
[1646077756421,49.08223586,96.107,96.013,104.0]
[1646077756622,49.08223586,96.107,96.014,2.74678921]
[1646077757623,49.08223586,96.107,96.015,22.50668666]
[1646077757924,49.08223586,96.107,96.031,104.0]
[1646077761626,49.08223586,96.107,96.032,2.74678921]
[1646077763126,23.6148,96.138,96.032,2.74678921]
[1646077763330,23.6148,96.138,96.034,104.0]
[1646077763626,23.6148,96.138,96.035,2.74678921]
[1646077763826,23.6148,96.138,96.036,104.0]
[1646077764028,58.9605988,96.137,96.041,104.0]
[1646077764429,58.9605988,96.137,96.042,2.74678921]
[1646077766527,2.19231652,96.179,96.042,2.74678921]
[1646077766728,24.7873,96.178,96.044,104.0]
[1646077766927,1.72966509,96.177,96.045,2.29820172]
[1646077767126,1.72966509,96.177,96.061,104.0]
[1646077767327,1.72966509,96.177,96.063,104.0]
[1646077767526,55.08472726,96.176,96.063,104.0]
[1646077767726,2.2231101,96.175,96.065,104.0]
[1646077768127,2.2231101,96.175,96.066,2.74678921]
[1646077768327,2.2231101,96.175,96.08,15.0]
[1646077768529,2.2231101,96.175,96.081,127.1817]
[1646077769830,1.9842172,96.174,96.081,23.1817]
[1646077770029,34.36235699,96.174,96.081,23.1817]
[1646077770228,1.79385238,96.172,96.063,15.3307]
[1646077770430,62.39,96.169,96.064,23.1016]
[1646077770629,2.17603261,96.168,96.064,23.1016]
[1646077770829,23.38667729,96.168,96.064,23.1016]
[1646077771033,2.07230542,96.166,96.064,23.1016]
[1646077771430,62.39,96.164,96.064,23.1016]
[1646077771634,15.0,96.15,96.064,23.1016]
[1646077771832,24.55765435,96.149,96.064,23.1016]
[1646077772032,2.00489671,96.148,96.064,23.1016]
[1646077772231,46.42609292,96.147,96.064,23.1016]
[1646077772431,1.72196516,96.146,96.064,23.1016]
[1646077772730,1.72196516,96.146,96.064,39.0794]
[1646077773130,1.72196516,96.146,96.064,23.1016]
[1646077773730,64.11196516,96.146,96.064,23.1016]
[1646077773930,2.15952911,96.145,96.064,23.1016]
[1646077776232,2.15952911,96.145,96.065,4.162]
[1646077776834,2.15952911,96.145,96.064,23.1016]
[1646077777433,2.15952911,96.145,96.064,38.7673]
[1646077777633,2.15952911,96.145,96.065,4.162]
[1646077777834,2.15952911,96.145,96.065,108.162]
[1646077778035,46.42609292,96.147,96.066,2.74678921]
[1646077778234,46.42609292,96.147,96.067,4.162]
[1646077778636,46.42609292,96.147,96.068,2.74678921]
[1646077780238,22.6105,96.149,96.068,2.74678921]
[1646077780537,23.5259,96.167,96.069,108.16]
[1646077780739,23.5259,96.167,96.071,104.0]
[1646077780938,23.5259,96.167,96.072,4.16]
[1646077781142,49.30811702,96.166,96.073,104.0]
[1646077781337,49.30811702,96.166,96.074,4.16]
[1646077781741,49.30811702,96.166,96.075,2.74678921]
[1646077781939,49.30811702,96.166,96.076,4.16]
[1646077782140,49.30811702,96.166,96.081,104.0]
[1646077782341,49.30811702,96.166,96.082,4.16]
[1646077782541,49.30811702,96.166,96.083,104.0]
[1646077783244,49.30811702,96.166,96.085,104.0]
[1646077783443,49.30811702,96.166,96.086,4.16]
[1646077783647,49.30811702,96.166,96.087,104.0]
[1646077783845,49.30811702,96.166,96.088,4.16]
[1646077784247,49.30811702,96.166,96.089,104.0]
[1646077784450,49.30811702,96.166,96.09,4.16]
[1646077784649,49.30811702,96.166,96.091,104.0]
[1646077785049,51.51017147,96.166,96.091,106.74678921]
[1646077786051,51.51017147,96.166,96.091,2.74678921]
[1646077786252,2.07964565,96.165,96.089,15.7351]
[1646077786454,2.07964565,96.165,96.081,2.74678921]
[1646077786650,22.5843,96.164,96.071,4.16]
[1646077786851,2.06005848,96.163,96.071,4.16]
[1646077787051,2.06005848,96.163,96.072,2.74678921]
[1646077787659,2.06005848,96.163,96.071,4.16]
[1646077787660,15.0,96.16,96.071,4.16]
[1646077787852,2.11155858,96.158,96.071,4.16]
[1646077793576,2.11155858,96.158,96.072,2.74678921]
[1646077795178,1.88205317,96.163,96.072,2.74678921]
[1646077799484,22.5843,96.164,96.081,104.0]
[1646077799883,22.5843,96.164,96.083,104.0]
[1646077800288,2.14745462,96.163,96.084,2.74678921]
[1646077800487,48.21615037,96.162,96.084,2.74678921]
[1646077800686,2.25749008,96.161,96.084,2.74678921]
[1646077804592,1.64280485,96.196,96.085,104.0]
[1646077804791,1.64280485,96.196,96.085,150.07208666]
[1646077804992,1.64280485,96.196,96.087,104.0]
[1646077805191,1.64280485,96.196,96.101,104.0]
[1646077805393,43.83705037,96.195,96.103,104.0]
[1646077805792,2.10597102,96.194,96.103,104.0]
[1646077806492,2.10597102,96.194,96.104,2.74678921]
[1646077806895,2.10597102,96.194,96.105,4.16]
[1646077807193,64.49597102,96.194,96.105,4.16]
[1646077807393,1.82598327,96.193,96.103,4.16]
[1646077807892,1.82598327,96.193,96.102,23.4276]
[1646077808292,1.82598327,96.193,96.103,4.16]
[1646077809396,22.79882795,96.193,96.012,0.54]
[1646077809596,62.39,96.189,96.06,15.0]
[1646077809793,1.79324996,96.188,96.06,2.74678921]
[1646077809993,1.71284257,96.186,96.065,4.16]
[1646077810197,62.39,96.184,96.066,24.4161]
[1646077810396,62.39,96.179,96.067,104.0]
[1646077810694,1.66930955,96.178,96.067,104.0]
[1646077812097,1.66930955,96.178,96.066,24.4161]
[1646077812295,1.66930955,96.178,96.067,4.16]
[1646077812495,0.1,96.177,96.067,4.16]
[1646077813697,62.39,96.175,96.066,24.4161]
[1646077813897,62.39,96.169,96.067,104.0]
[1646077814297,2.30987436,96.168,96.067,104.0]
[1646077814497,47.1904,96.168,96.067,104.0]
[1646077814700,55.47178862,96.166,96.067,104.0]
[1646077814896,1.83997427,96.165,96.068,4.16]
[1646077815299,1.83997427,96.165,96.067,108.16]
[1646077818598,1.83997427,96.165,96.068,2.74678921]
[1646077818898,1.83997427,96.165,96.069,4.16]
[1646077819198,1.83997427,96.165,96.07,2.74678921]
[1646077819501,1.83997427,96.165,96.071,4.16]
[1646077819698,47.0904,96.168,96.081,104.0]
[1646077819901,47.0904,96.168,96.082,4.16]
[1646077820100,47.0904,96.168,96.083,104.0]
[1646077820298,44.60986896,96.167,96.084,4.16]
[1646077820500,47.0904,96.168,96.084,4.16]
[1646077820698,2.06342771,96.19,96.085,25.39127587]
[1646077820902,24.0744,96.197,96.086,132.3659]
[1646077821098,1.66271247,96.196,96.101,104.0]
[1646077821298,1.66271247,96.196,96.1,15.0]
[1646077821299,1.66271247,96.196,96.103,104.0]
[1646077821499,2.22803475,96.194,96.103,104.0]
[1646077821700,2.22803475,96.194,96.104,4.16]
[1646077821901,2.22803475,96.194,96.105,104.0]
[1646077822100,2.22803475,96.194,96.111,104.0]
[1646077822504,24.0744,96.197,96.111,104.0]
[1646077822702,24.0744,96.197,96.112,2.74678921]
[1646077822901,24.0744,96.197,96.113,104.0]
[1646077823103,24.0744,96.197,96.114,4.159]
[1646077823302,24.0744,96.197,96.115,104.0]
[1646077823512,76.66471136,96.197,96.116,4.159]
[1646077823701,76.66471136,96.197,96.13,15.0]
[1646077823901,2.24948247,96.217,96.131,108.159]
[1646077824102,23.5411,96.216,96.131,110.90578921]
[1646077824303,1.71460446,96.215,96.131,116.709]
[1646077824505,1.71460446,96.215,96.132,2.74678921]
[1646077824703,1.71460446,96.215,96.133,4.159]
[1646077824904,50.61683485,96.214,96.133,4.159]
[1646077825107,2.23093642,96.213,96.133,4.159]
[1646077825505,2.23093642,96.213,96.134,104.0]
[1646077825708,24.2576,96.218,96.135,4.159]
[1646077825904,1.89215657,96.252,96.151,104.0]
[1646077826105,45.8079,96.251,96.152,4.157]
[1646077826306,1.67905913,96.25,96.152,4.157]
[1646077826506,57.48665179,96.25,96.153,104.0]
[1646077826705,2.25446015,96.249,96.154,4.157]
[1646077827307,2.25446015,96.249,96.156,104.0]
[1646077827511,2.25446015,96.249,96.171,104.0]
[1646077827709,2.25446015,96.249,96.172,4.157]
[1646077827906,2.25446015,96.249,96.172,6.90378921]
[1646077828107,2.25446015,96.249,96.173,104.0]
[1646077828307,2.25446015,96.249,96.174,4.157]
[1646077828507,2.25446015,96.249,96.175,104.0]
[1646077828710,2.25446015,96.249,96.176,4.157]
[1646077828911,55.80759266,96.25,96.181,104.0]
[1646077829109,55.80759266,96.25,96.182,4.157]
[1646077830414,1.63132188,96.249,96.182,4.157]
[1646077830614,1.63132188,96.249,96.181,4.157]
[1646077832335,1.63132188,96.249,96.156,4.157]
[1646077832534,1.63132188,96.249,96.15,15.0]
[1646077832736,1.63132188,96.249,96.145,4.157]
[1646077832934,1.63132188,96.249,96.144,2.74678921]
[1646077832935,1.63132188,96.249,96.161,104.0]
[1646077833336,1.63132188,96.249,96.163,104.0]
[1646077833536,1.63132188,96.249,96.164,4.157]
[1646077833735,1.63132188,96.249,96.163,104.0]
[1646077833935,1.63132188,96.249,96.162,6.0]
[1646077834137,1.63132188,96.249,96.163,104.0]
[1646077835535,1.63132188,96.249,96.163,106.74678921]
[1646077835938,1.63132188,96.249,96.163,2.74678921]
[1646077836436,1.63132188,96.249,96.163,106.74678921]
[1646077837241,1.63132188,96.249,96.164,4.157]
[1646077837639,1.63132188,96.249,96.165,2.74678921]
[1646077837840,1.63132188,96.249,96.166,4.157]
[1646077838242,1.63132188,96.249,96.165,2.74678921]
[1646077838439,1.63132188,96.249,96.161,4.157]
[1646077838639,1.63132188,96.249,96.16,15.2594]
[1646077840045,64.02132188,96.249,96.16,15.2594]
[1646077840247,1.66358585,96.248,96.16,15.2594]
[1646077840452,1.66358585,96.248,96.145,4.157]
[1646077840644,0.4,96.247,96.146,6.0]
[1646077840845,1.66358585,96.248,96.147,4.158]
[1646077841045,1.66358585,96.248,96.15,15.0]
[1646077841245,1.66358585,96.248,96.151,108.158]
[1646077841646,1.66358585,96.248,96.152,2.74678921]
[1646077841849,1.66358585,96.248,96.153,104.0]
[1646077842047,1.66358585,96.248,96.153,131.57117292]
[1646077842248,1.66358585,96.248,96.154,2.74678921]
[1646077842450,1.66358585,96.248,96.155,108.157]
[1646077842648,51.11553048,96.247,96.171,104.0]
[1646077842847,1.94329597,96.246,96.171,104.0]
[1646077843049,1.94329597,96.246,96.172,2.74678921]
[1646077845150,1.94329597,96.246,96.171,15.4725]
[1646077845554,1.94329597,96.246,96.172,104.0]
[1646077845952,1.94329597,96.246,96.173,4.157]
[1646077846853,1.94329597,96.246,96.171,15.4725]
[1646077847653,1.94329597,96.246,96.172,104.0]
[1646077848257,1.94329597,96.246,96.171,15.4725]
[1646077849659,1.94329597,96.246,96.172,104.0]
[1646077850059,1.94329597,96.246,96.174,104.0]
[1646077850260,1.94329597,96.246,96.175,4.157]
[1646077850457,1.94329597,96.246,96.176,104.0]
[1646077850662,1.94329597,96.246,96.18,15.0]
[1646077851259,1.94329597,96.246,96.177,4.157]
[1646077851460,1.94329597,96.246,96.172,4.157]
[1646077853266,1.94329597,96.246,96.156,4.157]
[1646077853461,0.3,96.245,96.156,4.157]
[1646077853662,0.4,96.245,96.15,4.157]
[1646077855162,0.4,96.245,96.146,6.0]
[1646077855565,0.4,96.245,96.15,104.0]
[1646077857167,0.4,96.245,96.136,4.158]
[1646077857365,2.64022536,96.245,96.132,4.158]
[1646077857771,2.24022536,96.245,96.132,4.158]
[1646077857964,0.4,96.244,96.132,4.158]
[1646077858164,0.4,96.244,96.132,108.158]
[1646077858370,2.01141066,96.239,96.134,104.0]
[1646077858567,23.974,96.238,96.135,4.158]
[1646077858769,2.06093018,96.237,96.135,4.158]
[1646077858968,2.06093018,96.237,96.136,104.0]
[1646077859168,2.06093018,96.237,96.137,4.158]
[1646077859770,2.06093018,96.237,96.139,104.0]
[1646077860070,2.06093018,96.237,96.14,4.158]
[1646077863273,2.06093018,96.237,96.141,2.74678921]
[1646077863477,2.06093018,96.237,96.142,4.158]
[1646077863874,2.06093018,96.237,96.143,106.74678921]
[1646077864074,2.06093018,96.237,96.144,4.158]
[1646077864273,2.06093018,96.237,96.145,104.0]
[1646077864473,2.06093018,96.237,96.146,4.158]
[1646077864673,2.06093018,96.237,96.161,104.0]
[1646077864874,2.06093018,96.237,96.162,4.158]
[1646077866092,2.06093018,96.237,96.163,104.0]
[1646077866291,2.06093018,96.237,96.164,4.158]
[1646077866492,2.15448397,96.275,96.165,104.0]
[1646077866689,2.15448397,96.275,96.164,6.90478921]
[1646077866690,24.7052,96.275,96.181,104.0]
[1646077866890,1.96996351,96.274,96.183,104.0]
[1646077867292,1.66996351,96.274,96.183,104.0]
[1646077867493,43.88723201,96.273,96.183,104.0]
[1646077867692,2.14409543,96.272,96.184,2.74678921]
[1646077867892,2.14409543,96.272,96.185,104.0]
[1646077868092,2.14409543,96.272,96.191,104.0]
[1646077869392,2.14409543,96.272,96.191,119.6902]
[1646077869595,2.14409543,96.272,96.192,2.74678921]
[1646077869792,43.88723201,96.273,96.192,2.74678921]
[1646077870892,2.15933565,96.272,96.192,104.0]
[1646077871593,2.15933565,96.272,96.191,15.6902]
[1646077872193,2.15933565,96.272,96.17,15.0]
[1646077872593,0.4,96.271,96.17,15.0]
[1646077872802,0.4,96.271,96.143,24.225]
[1646077873003,15.0,96.27,96.15,15.0]
[1646077873303,64.55832473,96.269,96.15,15.0]
[1646077873504,62.39,96.269,96.15,15.0]
[1646077873705,2.04036914,96.268,96.143,24.225]
[1646077874105,2.04036914,96.268,96.144,104.0]
[1646077874304,2.44678921,96.267,96.144,104.0]
[1646077874505,2.44678921,96.267,96.151,104.0]
[1646077874907,2.44678921,96.267,96.15,15.0]
[1646077875107,2.44678921,96.267,96.155,104.0]
[1646077875506,2.44678921,96.267,96.15,15.0]
[1646077875707,62.39,96.265,96.151,15.3699]
[1646077875907,2.06937129,96.264,96.143,24.225]
[1646077876108,62.39,96.259,96.143,24.225]
[1646077876309,2.1114154,96.258,96.149,15.7447]
[1646077876510,2.5114154,96.258,96.149,15.7447]
[1646077876709,62.39,96.256,96.149,15.7447]
[1646077877009,1.93761383,96.255,96.135,15.7715]
[1646077877206,62.39,96.239,96.135,15.7715]
[1646077877407,62.39,96.237,96.114,104.0]
[1646077877607,1.77549029,96.236,96.114,104.0]
[1646077877807,4.2222795,96.236,96.114,104.0]
[1646077878107,1.77549029,96.236,96.112,10.8343204]
[1646077878306,1.77549029,96.236,96.11,15.0]
[1646077878508,1.77549029,96.236,96.106,24.2799]
[1646077878509,64.83678921,96.235,96.106,24.2799]
[1646077878707,1.67094558,96.218,96.107,6.0]
[1646077878907,1.66184724,96.215,96.107,6.0]
[1646077879210,1.66184724,96.215,96.108,104.0]
[1646077879409,1.66184724,96.215,96.108,106.74678921]
[1646077879608,0.3,96.214,96.109,2.74678921]
[1646077879807,0.4,96.214,96.109,2.74678921]
[1646077882013,0.4,96.214,96.107,6.0]
[1646077882612,0.4,96.214,96.1,15.6579]
[1646077882613,0.4,96.214,96.101,104.0]
[1646077882911,0.4,96.214,96.1,15.6579]
[1646077882912,110.00232533,96.209,96.103,104.0]
[1646077883113,1.69524399,96.208,96.103,104.0]
[1646077883811,2.44678921,96.207,96.103,104.0]
[1646077884014,2.44678921,96.207,96.102,6.0]
[1646077884212,2.44678921,96.207,96.1,15.6579]
[1646077885314,2.44678921,96.207,96.101,104.0]
[1646077885517,2.44678921,96.207,96.101,106.74678921]
[1646077885813,2.44678921,96.207,96.103,104.0]
[1646077886220,1.69524399,96.208,96.105,104.0]
[1646077886418,1.69524399,96.208,96.111,104.0]
[1646077886818,1.69524399,96.208,96.112,2.74678921]
[1646077887221,2.56342369,96.207,96.112,2.74678921]
[1646077887419,2.56342369,96.207,96.092,26.84708921]
[1646077887621,2.16342369,96.207,96.092,26.84708921]
[1646077887820,0.4,96.206,96.092,26.84708921]
[1646077888019,0.4,96.206,96.093,104.0]
[1646077888218,0.4,96.206,96.094,4.159]
[1646077888418,0.4,96.206,96.093,4.159]
[1646077889019,0.4,96.206,96.094,104.0]
[1646077889223,0.4,96.206,96.095,4.159]
[1646077890424,62.39,96.204,96.093,4.16]
[1646077890625,62.39,96.199,96.093,15.8315]
[1646077890821,1.77799334,96.198,96.093,15.8315]
[1646077891121,2.17799334,96.198,96.093,15.8315]
[1646077891323,62.39,96.197,96.093,15.8315]
[1646077891521,1.96168264,96.196,96.093,15.8315]
[1646077892125,0.4,96.195,96.093,15.8315]
[1646077892322,62.39,96.189,96.093,15.8315]
[1646077892522,1.91711066,96.188,96.093,15.8315]
[1646077893021,2.44678921,96.187,96.093,15.8315]
[1646077893223,62.39,96.185,96.093,15.8315]
[1646077893522,1.64539639,96.184,96.093,15.8315]
[1646077894022,1.64539639,96.184,96.093,19.9915]
[1646077894824,1.64539639,96.184,96.094,106.74678921]
[1646077895022,1.64539639,96.184,96.095,4.16]
[1646077895222,47.4611,96.186,96.096,104.0]
[1646077895423,47.4611,96.186,96.097,4.16]
[1646077895622,47.4611,96.186,96.111,104.0]
[1646077895822,47.4611,96.186,96.112,4.16]
[1646077896023,47.4611,96.186,96.113,104.0]
[1646077896323,47.4611,96.186,96.114,4.16]
[1646077896524,1.63122128,96.208,96.114,4.16]
[1646077896724,1.63122128,96.208,96.115,104.0]
[1646077896925,1.63122128,96.208,96.116,4.159]
[1646077897126,1.63122128,96.208,96.121,104.0]
[1646077897329,1.63122128,96.208,96.122,4.159]
[1646077897826,1.63122128,96.208,96.123,2.74678921]
[1646077898027,1.63122128,96.208,96.124,4.159]
[1646077898425,1.63122128,96.208,96.125,2.74678921]
[1646077898627,1.63122128,96.208,96.126,4.159]
[1646077899235,22.5328,96.207,96.126,4.159]
[1646077899428,2.22604365,96.206,96.124,4.159]
[1646077899832,2.22604365,96.206,96.122,15.8286]
[1646077900429,1.37658489,96.206,96.123,4.159]
[1646077900831,1.37658489,96.206,96.122,15.8286]
[1646077901630,1.37658489,96.206,96.12,15.0]
[1646077901631,62.39,96.206,96.104,26.14858921]
[1646077901830,1.7604579,96.205,96.105,4.159]
[1646077902230,1.8604579,96.205,96.104,23.4018]
[1646077902434,1.7604579,96.205,96.104,23.4018]
[1646077902930,0.1,96.204,96.104,23.4018]
[1646077903331,1.7908477,96.198,96.104,23.4018]
[1646077903732,64.12593273,96.197,96.104,23.4018]
[1646077903932,1.77879203,96.196,96.104,23.4018]
[1646077904334,62.39,96.194,96.104,23.4018]
[1646077904533,1.83301752,96.193,96.104,23.4018]
[1646077904732,1.83301752,96.193,96.098,4.159]
[1646077905433,1.83301752,96.193,96.081,23.0395]
[1646077905634,1.83301752,96.193,76.675,0.52941176]
[1646077905635,62.39,96.179,96.071,23.41317292]
[1646077905836,62.39,96.179,96.051,49.1231]
[1646077906035,62.39,96.177,96.055,4.161]
[1646077906236,1.7591595,96.176,96.055,4.161]
[1646077906453,62.39,96.175,96.054,15.7185]
[1646077906654,62.39,96.159,96.055,4.16]
[1646077906855,15.0,96.16,96.055,4.16]
[1646077906856,24.63938908,96.158,96.057,104.0]
[1646077907156,1.40938909,96.157,96.058,4.162]
[1646077907354,1.40938909,96.157,96.058,6.90878921]
[1646077907558,1.40938909,96.157,96.059,2.74678921]
[1646077907757,1.40938909,96.157,96.06,4.16]
[1646077910359,1.40938909,96.157,96.061,2.74678921]
[1646077910560,1.40938909,96.157,96.062,4.16]
[1646077911460,1.40938909,96.157,96.063,2.74678921]
[1646077912663,23.2557,96.158,96.064,108.16]
[1646077912858,23.2557,96.158,96.071,106.29091871]
[1646077913061,23.2557,96.158,96.072,4.16]
[1646077913459,23.2557,96.158,96.073,104.0]
[1646077913659,23.2557,96.158,96.074,2.93061348]
[1646077913957,23.2557,96.158,96.075,104.0]
[1646077914162,23.2557,96.158,96.081,104.0]
[1646077914763,23.2557,96.158,96.082,2.74678921]
[1646077921273,1.7007436,96.157,96.081,15.4353]
[1646077921472,23.2557,96.158,96.082,104.0]
[1646077921972,24.4276,96.157,96.082,104.0]
[1646077922673,24.4276,96.157,96.083,5.19010707]
[1646077922874,59.62940711,96.178,96.083,5.19010707]
[1646077923077,23.6826,96.177,96.084,106.74678921]
[1646077923289,23.6826,96.177,96.085,2.86366165]
[1646077923476,23.6826,96.177,96.086,104.0]
[1646077923676,23.6826,96.177,96.086,106.74678921]
[1646077923876,23.3668,96.19,96.086,106.74678921]
[1646077923877,23.3668,96.19,96.101,104.0]
[1646077924076,23.3668,96.19,96.102,2.87996264]
[1646077924275,1.44772658,96.211,96.102,5.62675185]
[1646077924475,54.94863515,96.207,96.104,3.01395314]
[1646077924875,24.0742,96.206,96.105,2.74678921]
[1646077925078,24.0742,96.206,96.121,104.0]
[1646077925679,24.0742,96.206,96.121,106.74678921]
[1646077926075,24.0742,96.206,96.122,2.57516251]
[1646077926875,54.94863515,96.207,96.122,2.57516251]
[1646077927076,23.8523,96.228,96.123,2.74678921]
[1646077927276,23.8523,96.228,96.125,104.0]
[1646077927477,23.8523,96.228,96.126,2.83605871]
[1646077927677,23.8523,96.228,96.141,104.0]
[1646077928076,67.94906469,96.228,96.141,104.0]
[1646077929483,44.09676469,96.228,96.141,104.0]
[1646077929682,44.09676469,96.228,96.142,5.00247429]
[1646077929883,24.3115,96.25,96.142,5.00247429]
[1646077930082,24.3115,96.25,96.144,104.0]
[1646077930286,24.3115,96.25,96.145,2.50035191]
[1646077930485,0.1,96.249,96.146,104.0]
[1646077930683,0.1,96.249,96.151,104.0]
[1646077930888,53.73612107,96.249,96.151,104.0]
[1646077931289,53.63612107,96.249,96.152,2.74678921]
[1646077931486,0.1,96.248,96.152,2.74678921]
[1646077931686,86.02004018,96.248,96.15,15.0]
[1646077931886,62.39,96.246,96.15,15.2885]
[1646077932087,1.60111548,96.245,96.15,15.2885]
[1646077932287,62.39,96.244,96.15,15.2885]
[1646077932487,1.78161793,96.243,96.15,15.2885]
[1646077932906,0.6,96.242,96.15,15.2885]
[1646077933306,1.78161793,96.243,96.15,15.2885]
[1646077933512,0.6,96.242,96.15,15.2885]
[1646077937213,62.39,96.24,96.134,23.8168]
[1646077937419,1.44945287,96.239,96.134,23.8168]
[1646077937613,1.58538967,96.237,96.134,23.8168]
[1646077938215,62.39,96.235,96.134,23.8168]
[1646077938413,15.0,96.22,96.134,23.8168]
[1646077938617,75.9981837,96.219,96.134,23.8168]
[1646077938814,1.53968062,96.218,96.134,23.8168]
[1646077939013,3.78646983,96.218,96.134,23.8168]
[1646077939616,1.53968062,96.218,96.134,23.8168]
[1646077940513,2.24678921,96.217,96.134,23.8168]
[1646077940715,2.24678921,96.217,96.135,104.0]
[1646077940915,74.31263365,96.219,96.141,104.0]
[1646077941317,74.31263365,96.219,96.142,2.74678921]
[1646077942317,23.5138,96.219,96.142,2.74678921]
[1646077944018,23.5138,96.219,96.14,15.0]
[1646077944215,1.78046038,96.218,96.14,15.0]
[1646077945118,23.5138,96.219,96.141,104.0]
[1646077946919,23.5138,96.219,96.141,106.74678921]
[1646077947821,1.44876162,96.239,96.141,106.74678921]
[1646077948121,23.1368,96.251,96.144,3.0619902]
[1646077948521,23.1368,96.251,96.145,2.74678921]
[1646077948720,1.38514249,96.249,96.145,2.74678921]
[1646077950123,51.24623434,96.25,96.145,2.74678921]
[1646077950324,51.24623434,96.25,96.146,125.54091535]
[1646077950525,51.24623434,96.25,96.161,104.0]
[1646077950723,24.8981,96.257,96.161,104.0]
[1646077950923,24.8981,96.257,96.162,5.01430235]
[1646077951123,24.8981,96.257,96.162,2.74678921]
[1646077951328,24.8981,96.257,96.163,106.74678921]
[1646077951725,48.84257741,96.256,96.164,2.74678921]